bitfinex/quotes_BTCUSD_20250406
["timestamp","ask_amount","ask_price","bid_price","bid_amount"]
[1743963744918,0.34,79985.0,79980.0,0.05063519]
[1743963745124,0.77829354,80010.0,79980.0,0.05063519]
[1743963745327,0.15,80030.0,79983.0,0.01454085]
[1743963745328,0.77404901,80030.0,79983.0,0.01454085]
[1743963745455,0.00424453,80022.0,79984.0,0.14421137]
[1743963745660,0.12290297,80021.0,79984.0,0.14421137]
[1743963745861,0.12290297,80021.0,79988.0,0.012501]
[1743963746093,0.00424453,80019.0,79989.0,0.12290297]
[1743963746314,0.12290297,80018.0,79989.0,0.12290297]
[1743963746519,0.00424453,80022.0,79990.0,0.03041607]
[1743963746719,0.12290297,80021.0,79992.0,0.01454085]
[1743963746905,0.1,80033.0,79998.0,0.18954485]
[1743963747106,0.77404901,80040.0,80003.0,0.012499]
[1743963747307,0.77404901,80040.0,80000.0,0.01325547]
[1743963747308,0.00150069,80051.0,80024.0,0.012496]
[1743963747530,0.00150069,80051.0,80041.0,0.01454085]
[1743963747945,0.00150069,80051.0,80035.0,0.174921]
[1743963747946,0.0003362,80061.0,80051.0,0.01454085]
[1743963748291,0.05946,80060.0,80053.0,0.01454085]
[1743963748490,0.00424453,80055.0,80013.0,0.058497]
[1743963748656,0.0003362,80061.0,80013.0,0.058497]
[1743963748657,0.12290297,80054.0,80026.0,0.13744382]
[1743963748861,0.77404901,80050.0,80013.0,0.046]
[1743963749085,0.00079247,80061.0,80035.0,0.01454085]
[1743963749246,0.12290297,80061.0,80035.0,0.12290297]
[1743963749449,0.00299664,80076.0,80038.0,0.174916]
[1743963749651,0.12290297,80075.0,80040.0,0.01422466]
[1743963749855,0.00299664,80082.0,80041.0,0.12290297]
[1743963750019,1.85444901,80090.0,80041.0,0.12261573]
[1743963750020,0.00299664,80072.0,80041.0,0.12261573]
[1743963750220,0.77704565,80070.0,80041.0,0.12261573]
[1743963750420,0.00299664,80048.0,80039.0,0.02245931]
[1743963750625,0.34,80046.0,80005.0,0.00200336]
[1743963750829,0.00299664,80042.0,80014.0,0.12290297]
[1743963751053,0.00299664,80053.0,80015.0,0.0168903]
[1743963751261,0.174837,80075.0,80015.0,0.0168903]
[1743963751262,0.00299664,80066.0,80041.0,0.00045627]
[1743963751458,0.34,80064.0,80041.0,0.00045627]
[1743963751668,0.00299664,80082.0,80046.0,0.01454085]
[1743963751876,0.08602,80076.0,80041.0,0.00045627]
[1743963752091,0.174862,80063.0,80042.0,0.02254192]
[1743963752350,0.00299664,80053.0,80042.0,0.02254192]
[1743963752596,0.34,80052.0,80041.0,0.00045627]
[1743963752850,0.00299664,80074.0,80042.0,0.12290297]
[1743963753076,0.00287747,80076.0,80042.0,0.12290297]
[1743963753373,0.12290297,80075.0,80042.0,0.12290297]
[1743963753504,0.12573044,80075.0,80043.0,0.01233592]
[1743963753739,0.05775708,80072.0,80045.0,0.012492]
[1743963753938,1.01385351,80090.0,80062.0,0.01249]
[1743963754165,0.08602,80076.0,80063.0,0.14544489]
[1743963754366,0.08102,80076.0,80065.0,0.012489]
[1743963754530,0.0003352,80099.0,80066.0,0.21722832]
[1743963754928,0.1,80080.0,80066.0,0.33278889]
[1743963755147,0.0003352,80099.0,80075.0,0.012488]
[1743963755347,0.0003352,80113.0,80075.0,0.012488]
[1743963755348,0.0003352,80113.0,80103.0,0.174774]
[1743963755525,0.0003352,80113.0,80104.0,0.03502492]
[1743963755734,0.0003352,80113.0,80105.0,0.02254192]
[1743963755735,0.00047311,80108.0,80105.0,0.02254192]
[1743963755944,0.0003352,80113.0,80106.0,0.15730061]
[1743963756176,0.0003352,80113.0,80106.0,0.12290297]
[1743963756395,1.08004,80150.0,80107.0,0.04956577]
[1743963756594,1.08004,80150.0,80111.0,0.01454085]
[1743963756796,8e-05,80150.0,80113.0,0.01454085]
[1743963756933,8e-05,80150.0,80117.0,0.01454085]
[1743963757136,8e-05,80150.0,80122.0,0.12290297]
[1743963757350,0.174677,80148.0,80123.0,0.03381248]
[1743963757564,0.174659,80156.0,80155.0,0.005]
[1743963757809,0.39756197,80156.0,80155.0,0.005]
[1743963758007,0.22290297,80156.0,80155.0,0.005]
[1743963758216,0.22290297,80156.0,80123.0,0.02254192]
[1743963758417,0.1,80142.0,80124.0,0.12290297]
[1743963758621,0.1,80143.0,80125.0,0.0122903]
[1743963758863,0.0003362,80163.0,80125.0,0.0122903]
[1743963758864,0.0003362,80163.0,80126.0,0.07884326]
[1743963759072,0.1,80154.0,80126.0,0.03499801]
[1743963759201,0.1,80154.0,80127.0,0.01454085]
[1743963759420,0.174668,80152.0,80112.0,0.01127056]
[1743963759646,0.1,80147.0,80112.0,0.13417353]
[1743963759844,0.34,80142.0,80113.0,0.02289685]
[1743963760044,0.56290297,80142.0,80113.0,0.14579982]
[1743963760246,0.34,80141.0,80114.0,0.0374377]
[1743963760472,0.34,80141.0,80114.0,0.02289685]
[1743963760473,0.34,80139.0,80114.0,0.02289685]
[1743963760624,0.34,80137.0,80114.0,0.02289685]
[1743963760995,0.012476,80149.0,80098.0,0.0454]
[1743963760996,0.335,80135.0,80100.0,0.77404901]
[1743963761173,0.0003362,80163.0,80117.0,0.012481]
[1743963761415,0.0003362,80163.0,80110.0,0.77404901]
[1743963761416,0.09938,80147.0,80119.0,0.01454085]
[1743963761622,0.000167,80144.0,80121.0,0.01454085]
[1743963761822,0.00013686,80135.0,80123.0,0.01454085]
[1743963761987,0.00013686,80135.0,80125.0,0.01454085]
[1743963762189,0.00013686,80135.0,80118.0,0.012481]
[1743963762190,0.00013686,80135.0,80126.0,0.13810144]
[1743963762368,0.00013686,80135.0,80127.0,0.01454085]
[1743963762568,0.00013686,80135.0,80129.0,0.01454085]
[1743963762793,0.00013686,80135.0,80131.0,0.01454085]
[1743963763138,0.0003362,80163.0,80143.0,0.012477]
[1743963763256,0.0003362,80163.0,80145.0,0.01454085]
[1743963763454,0.0007923,80163.0,80146.0,0.12290297]
[1743963763654,0.0007923,80163.0,80147.0,0.01454085]
[1743963763898,0.0007923,80163.0,80148.0,0.12290297]
[1743963764105,0.0007923,80163.0,80144.0,0.0199647]
[1743963764279,0.0007923,80163.0,80127.0,0.01454085]
[1743963764642,0.0007923,80163.0,80143.0,0.12290297]
[1743963764764,0.0007923,80163.0,80151.0,0.13744382]
[1743963764980,0.01248,80193.0,80156.0,0.01454085]
[1743963765180,0.01248,80193.0,80170.0,0.65144365]
[1743963765381,0.01248,80193.0,80174.0,0.01454085]
[1743963765623,0.01248,80193.0,80172.0,0.01454085]
[1743963765796,0.01248,80193.0,80173.0,0.174622]
[1743963766015,0.01248,80193.0,80181.0,0.12290297]
[1743963766240,0.01248,80193.0,80174.0,0.03201285]
[1743963766241,0.12290297,80189.0,80170.0,0.00013678]
[1743963766386,0.34,80179.0,80170.0,0.00013678]
[1743963766785,0.34,80177.0,80170.0,0.00013678]
[1743963766986,0.34,80175.0,80170.0,0.00013678]
[1743963767436,0.34,80179.0,80170.0,0.00013678]
[1743963768351,0.00200069,80194.0,80170.0,0.00013678]
[1743963768352,0.12290297,80178.0,80170.0,0.00013678]
[1743963768563,0.012473,80168.0,80123.0,0.01142613]
[1743963768693,0.1,80157.0,80127.0,0.12290297]
[1743963768892,0.0001367,80178.0,80135.0,0.12290297]
[1743963769256,0.0001367,80178.0,80148.0,0.01454085]
[1743963769392,0.77050702,80170.0,80118.0,0.025]
[1743963769597,0.12290297,80169.0,80127.0,0.12290297]
[1743963769796,0.77050702,80150.0,80128.0,0.02581575]
[1743963770133,0.12290297,80149.0,80111.0,0.0473]
[1743963770336,0.29757897,80149.0,80112.0,0.12290297]
[1743963770537,0.34,80148.0,80112.0,0.12290297]
[1743963770740,0.34,80146.0,80112.0,0.12290297]
[1743963770941,0.33,80144.0,80112.0,0.12290297]
[1743963771102,0.33,80144.0,80113.0,0.0170203]
[1743963771323,0.77050702,80140.0,80114.0,0.12290297]
[1743963771530,0.12290297,80143.0,80114.0,0.12290297]
[1743963771736,0.77050702,80130.0,80113.0,0.0170203]
[1743963771939,0.12290297,80129.0,80112.0,0.0004561]
[1743963772164,0.77050702,80130.0,80112.0,0.0004561]
[1743963772165,0.174735,80122.0,80112.0,0.0004561]
[1743963772364,0.77050702,80130.0,80112.0,0.0004561]
[1743963772365,0.12290297,80115.0,80112.0,0.0004561]
[1743963772578,0.77050702,80122.0,80112.0,0.0004561]
[1743963772794,0.174673,80150.0,80112.0,0.0004561]
[1743963772947,0.34,80129.0,80112.0,0.0004561]
[1743963773148,0.46290297,80125.0,80112.0,0.0004561]
[1743963773354,0.46290297,80113.0,80112.0,0.0004561]
[1743963774145,0.62765597,80113.0,80112.0,0.0004561]
[1743963774350,0.45290297,80113.0,80112.0,0.0004561]
[1743963775358,0.44290297,80113.0,80112.0,0.0004561]
[1743963775869,0.17477,80106.0,80100.0,4e-05]
[1743963776073,0.12290297,80101.0,80100.0,0.00017686]
[1743963776575,0.22290297,80101.0,80100.0,0.00017686]
[1743963776783,0.12290297,80101.0,80100.0,0.00017686]
[1743963776986,0.77050702,80110.0,80100.0,0.00017686]
[1743963777138,1.07852,80122.0,80100.0,0.00017686]
[1743963777340,0.1,80117.0,80100.0,0.00017686]
[1743963777548,0.12290297,80116.0,80103.0,0.0003338]
[1743963777976,0.34,80115.0,80103.0,0.0003338]
[1743963778174,0.34,80113.0,80103.0,0.0003338]
[1743963778398,1.07852,80122.0,80103.0,0.0003338]
[1743963778399,0.12290297,80112.0,80103.0,0.0003338]
[1743963778572,1.07852,80122.0,80103.0,0.0003338]
[1743963778772,0.1,80117.0,80103.0,0.0003338]
[1743963778974,0.15001143,80141.0,80103.0,0.0003338]
[1743963778975,0.77050702,80140.0,80105.0,0.01454085]
[1743963779175,0.10211143,80141.0,80112.0,0.187235]
[1743963779377,0.89340999,80140.0,80106.0,0.03377015]
[1743963779748,0.77050702,80130.0,80093.0,1.07864]
[1743963779884,0.77050702,80130.0,80094.0,0.01454085]
[1743963779885,0.12290297,80129.0,80094.0,0.01454085]
[1743963780094,0.77050702,80120.0,80094.0,0.01454085]
[1743963780268,0.77050702,80140.0,80104.0,0.12290297]
[1743963780475,0.34,80119.0,80100.0,0.00017686]
[1743963780855,0.34,80112.0,80100.0,0.00017686]
[1743963781051,0.77050702,80113.0,80100.0,0.00017686]
[1743963781052,0.527255,80104.0,80100.0,0.00017686]
[1743963781255,0.187263,80101.0,80100.0,0.00017686]
[1743963781488,0.34,80070.0,80050.0,0.048]
[1743963781633,0.012487,80081.0,80033.0,0.0003342]
[1743963781634,0.34,80059.0,80033.0,0.0003342]
[1743963781820,0.174832,80077.0,80033.0,0.12174907]
[1743963781821,0.34,80057.0,80033.0,0.12174907]
[1743963782023,0.174828,80079.0,80033.0,0.12174907]
[1743963782024,0.34,80079.0,80046.0,0.012492]
[1743963782208,0.34,80077.0,80057.0,0.012491]
[1743963782413,0.77050702,80110.0,80074.0,0.02702885]
[1743963782633,0.77050702,80120.0,80092.0,0.012485]
[1743963782858,0.77050702,80110.0,80058.0,0.0479]
[1743963783057,0.77050702,80100.0,80078.0,0.174828]
[1743963783307,1.09310085,80130.0,80087.0,0.01454085]
[1743963783308,0.77050702,80120.0,80087.0,0.01454085]
[1743963783532,0.77050702,80120.0,80066.0,0.0122903]
[1743963783533,0.77050702,80100.0,80066.0,0.0122903]
[1743963783787,0.77050702,80100.0,80052.0,0.062291]
[1743963783788,0.34,80098.0,80067.0,0.13744382]
[1743963783993,0.012482,80112.0,80052.0,0.062291]
[1743963783994,0.34,80079.0,80052.0,0.0498]
[1743963784202,0.34,80069.0,80037.0,0.0479]
[1743963784430,0.34,80067.0,80038.0,0.12290297]
[1743963784706,0.34,80059.0,80039.0,0.01711372]
[1743963784909,0.34,80059.0,80058.0,0.00013691]
[1743963785611,0.12290297,80059.0,80058.0,0.00013691]
[1743963785814,0.34,80069.0,80025.0,0.012496]
[1743963786034,0.34,80067.0,80035.0,0.01454085]
[1743963786161,0.34,80059.0,80022.0,0.0003344]
[1743963786369,0.34,80057.0,80033.0,0.00079047]
[1743963786574,0.77050702,80060.0,80033.0,0.00079047]
[1743963786575,0.34,80055.0,80033.0,0.00079047]
[1743963786852,0.34,80069.0,80034.0,0.12290297]
[1743963786988,0.34,80067.0,80035.0,0.02691019]
[1743963787184,0.34,80065.0,80037.0,0.01454085]
[1743963787385,0.34,80065.0,80035.0,0.01236934]
[1743963787386,0.34,80059.0,80035.0,0.01236934]
[1743963787640,0.34,80057.0,80033.0,0.00079047]
[1743963787940,0.34,80055.0,80034.0,0.13744382]
[1743963788276,0.34,80055.0,80033.0,0.00079047]
[1743963788277,0.77050702,80050.0,80033.0,0.00079047]
[1743963788481,0.34,80053.0,80033.0,0.00079047]
[1743963789010,0.34,80053.0,80034.0,0.13744382]
[1743963789300,0.10211143,80079.0,80043.0,0.012493]
[1743963789530,0.10211143,80079.0,80045.0,0.01454085]
[1743963789680,0.10211143,80079.0,80047.0,0.01454085]
[1743963789977,0.12290297,80078.0,80049.0,0.01454085]
[1743963790174,0.34,80059.0,80036.0,0.01454085]
[1743963790340,0.34,80059.0,80036.0,0.13744382]
[1743963790519,0.34,80059.0,80037.0,0.01382343]
[1743963790993,0.34,80059.0,80025.0,0.1352545]
[1743963791299,0.34,80079.0,80034.0,0.13994217]
[1743963791607,0.34,80069.0,80034.0,0.13744382]
[1743963791837,0.34,80067.0,80025.0,0.1352545]
[1743963792019,0.34,80065.0,80035.0,0.00249817]
[1743963792214,0.34,80079.0,80037.0,0.01454085]
[1743963792441,0.34,80077.0,80039.0,0.01454085]
[1743963792635,0.34,80075.0,80041.0,0.01454085]
[1743963792777,0.77050702,80090.0,80048.0,0.01454085]
[1743963792976,0.77050702,80110.0,80059.0,0.01454085]
[1743963793178,0.77050702,80110.0,80061.0,0.01454085]
[1743963793377,0.77050702,80110.0,80063.0,0.01454085]
[1743963793605,0.34,80084.0,80065.0,0.01454085]
[1743963793807,0.77050702,80110.0,80067.0,0.01454085]
[1743963794010,0.17473,80124.0,80067.0,0.01454085]
[1743963794011,0.12290297,80109.0,80074.0,0.01454085]
[1743963794254,0.000167,80129.0,80078.0,0.01454085]
[1743963794457,0.12290297,80128.0,80080.0,0.01454085]
[1743963794669,0.000167,80129.0,80081.0,0.12290297]
[1743963794670,0.77064365,80110.0,80081.0,0.12290297]
[1743963794879,0.12290297,80109.0,80068.0,0.01454085]
[1743963795089,0.12290297,80109.0,80070.0,0.01454085]
[1743963795325,0.34,80099.0,80072.0,0.01454085]
[1743963795517,0.34,80089.0,80073.0,0.12289768]
[1743963795761,0.174812,80086.0,80060.0,0.02747357]
[1743963795942,0.12290297,80085.0,80061.0,0.00249791]
[1743963796091,0.34,80087.0,80061.0,0.00249791]
[1743963796092,0.34,80109.0,80063.0,0.01249]
[1743963796295,0.12290297,80109.0,80073.0,0.01454085]
[1743963796521,0.77064365,80110.0,80071.0,0.10584085]
[1743963796522,0.10703719,80101.0,80075.0,0.01454085]
[1743963796754,0.22994016,80101.0,80077.0,0.01454085]
[1743963796964,0.34,80100.0,80078.0,0.01374438]
[1743963797136,0.10703719,80101.0,80079.0,0.01454085]
[1743963797336,0.10703719,80101.0,80081.0,0.01454085]
[1743963797561,0.10703719,80101.0,80083.0,0.01454085]
[1743963797743,0.34,80100.0,80085.0,0.01454085]
[1743963797961,1.11050702,80100.0,80078.0,0.01374438]
[1743963798154,1.11050702,80100.0,80072.0,0.01454085]
[1743963798155,0.34,80098.0,80072.0,0.01454085]
[1743963798418,0.10703719,80101.0,80056.0,0.0493]
[1743963798419,0.34,80089.0,80056.0,0.0493]
[1743963798627,0.34,80087.0,80057.0,0.12290297]
[1743963798783,0.34,80085.0,80057.0,0.12290297]
[1743963798987,0.34,80085.0,80058.0,0.01498761]
[1743963799232,0.34,80085.0,80060.0,0.01454085]
[1743963799391,0.34,80085.0,80059.0,0.14287113]
[1743963799392,0.34,80085.0,80062.0,0.01454085]
[1743963799770,0.34,80085.0,80059.0,0.01996816]
[1743963799771,0.34,80085.0,80064.0,0.01454085]
[1743963799953,0.34,80099.0,80066.0,0.01454085]
[1743963800082,0.34,80097.0,80068.0,0.01454085]
[1743963800286,0.34,80097.0,80070.0,0.01454085]
[1743963800526,0.34,80095.0,80069.0,0.01544819]
[1743963800732,0.34,80093.0,80060.0,0.01454085]
[1743963800905,0.77050702,80090.0,80062.0,0.01454085]
[1743963801103,0.34,80088.0,80062.0,0.13744382]
[1743963801306,0.00013661,80100.0,80064.0,0.01454085]
[1743963801508,0.00013661,80100.0,80078.0,0.012487]
[1743963801716,0.00013661,80100.0,80080.0,0.01454085]
[1743963801912,0.00013661,80100.0,80082.0,0.01454085]
[1743963802115,0.00013661,80100.0,80084.0,0.01454085]
[1743963802317,0.00013661,80100.0,80083.0,0.12290297]
[1743963802318,0.00013661,80100.0,80095.0,0.012485]
[1743963802652,0.00013661,80100.0,80097.0,0.01454085]
[1743963802890,0.00013661,80100.0,80086.0,0.0494]
[1743963803095,0.00013661,80100.0,80087.0,0.15863625]
[1743963803237,0.00013661,80100.0,80087.0,0.02119243]
[1743963803645,0.00013661,80100.0,80070.0,0.1352545]
[1743963803646,0.00013661,80100.0,80079.0,0.1352545]
[1743963803846,0.34,80099.0,80070.0,0.14979535]
[1743963804204,0.46290297,80099.0,80070.0,0.1352545]
[1743963804440,0.34,80099.0,80082.0,0.00249716]
[1743963804715,0.34,80099.0,80079.0,0.1352545]
[1743963804944,0.00013661,80100.0,80082.0,0.12289768]
[1743963805055,0.00013661,80100.0,80083.0,0.13994084]
[1743963805456,0.00013661,80100.0,80094.0,0.01454085]
[1743963805755,0.00013661,80100.0,80096.0,0.01454085]
[1743963806734,0.00013661,80100.0,80097.0,0.01703735]
[1743963806937,0.00013661,80100.0,80098.0,0.01399403]
[1743963807347,0.00013661,80100.0,80099.0,0.00249649]
[1743963807567,0.00013661,80100.0,80099.0,0.13744382]
[1743963807747,0.00013661,80100.0,80099.0,0.14992782]
[1743963807973,0.00013661,80100.0,80099.0,0.13744382]
[1743963808138,0.00013661,80100.0,80099.0,0.20377531]
[1743963808343,0.0001671,80108.0,80107.0,0.187249]
[1743963808583,0.0001671,80108.0,80107.0,0.4479024]
[1743963808785,0.0001671,80108.0,80107.0,0.45994732]
[1743963808987,0.0001671,80108.0,80107.0,0.13744382]
[1743963809144,0.0001671,80108.0,80107.0,0.1511882]
[1743963809565,0.10712429,80134.0,80119.0,0.012481]
[1743963809769,0.00030386,80129.0,80125.0,0.01454085]
[1743963809941,0.00030386,80129.0,80127.0,0.01454085]
[1743963810140,0.00030386,80129.0,80126.0,0.12290297]
[1743963810141,0.00030386,80129.0,80128.0,0.13744382]
[1743963810398,0.00030386,80129.0,80128.0,0.30391433]
[1743963810596,0.10712429,80134.0,80128.0,0.30391433]
[1743963810597,0.10712429,80134.0,80133.0,0.187188]
[1743963810806,0.10712429,80134.0,80133.0,0.13744382]
[1743963811114,0.10712429,80134.0,80128.0,0.15149488]
[1743963811115,0.10712429,80134.0,80128.0,0.01624038]
[1743963811319,0.34,80144.0,80129.0,0.01454085]
[1743963811455,0.34,80149.0,80129.0,0.01454085]
[1743963811678,0.34,80149.0,80119.0,1.07864]
[1743963811679,0.34,80139.0,80119.0,1.07864]
[1743963811981,0.34,80129.0,80093.0,0.0494]
[1743963812183,0.34,80119.0,80107.0,4e-05]
[1743963812382,0.12290297,80118.0,80107.0,4e-05]
[1743963812586,0.02242212,80117.0,80082.0,1.21381711]
[1743963812880,0.02242212,80117.0,80083.0,0.11378639]
[1743963813297,0.02242212,80116.0,80083.0,0.11378639]
[1743963813424,0.03363351,80116.0,80084.0,0.12289768]
[1743963813627,0.14532509,80115.0,80085.0,0.12290297]
[1743963813856,0.14532509,80115.0,80084.0,0.12289768]
[1743963813857,0.02242212,80115.0,80095.0,0.012485]
[1743963814054,0.01121139,80116.0,80097.0,0.02702485]
[1743963814055,0.02242212,80114.0,80097.0,0.02702485]
[1743963814255,0.02242212,80114.0,80102.0,0.174777]
[1743963814454,0.06678207,80119.0,80115.0,0.012482]
[1743963814661,0.34678207,80119.0,80118.0,0.01454085]
[1743963814865,0.06678207,80119.0,80118.0,0.14992482]
[1743963815593,0.06678207,80119.0,80118.0,0.13744382]
[1743963815806,0.06678207,80119.0,80118.0,0.13758068]
[1743963816010,0.06678207,80119.0,80118.0,0.1648642]
[1743963816355,0.06678207,80119.0,80118.0,0.1773452]
[1743963816719,0.06678207,80119.0,80118.0,0.1773852]
[1743963816927,0.01290521,80166.0,80134.0,0.01454085]
[1743963817079,0.77114715,80180.0,80136.0,0.01454085]
[1743963817282,0.77114715,80180.0,80134.0,0.1352545]
[1743963817283,0.01664927,80171.0,80145.0,0.01454085]
[1743963817510,0.0036,80171.0,80147.0,0.01454085]
[1743963817682,0.0036,80171.0,80137.0,0.02851773]
[1743963817683,0.0036,80171.0,80149.0,0.01454085]
[1743963817868,0.0036,80171.0,80151.0,0.01454085]
[1743963818078,0.0026,80171.0,80153.0,0.01454085]
[1743963818280,0.0026,80171.0,80155.0,0.01454085]
[1743963818524,0.77098005,80170.0,80154.0,0.01374438]
[1743963818734,0.00305639,80171.0,80138.0,0.01454085]
[1743963818883,0.00305639,80171.0,80140.0,0.01454085]
[1743963819085,0.34,80169.0,80142.0,0.01454085]
[1743963819321,0.02239456,80168.0,80144.0,0.01454085]
[1743963819523,0.02239456,80168.0,80137.0,0.02851773]
[1743963819524,0.514652,80159.0,80137.0,0.02851773]
[1743963819694,0.34,80157.0,80138.0,0.12539842]
[1743963819893,0.339,80157.0,80139.0,0.01703598]
[1743963820099,0.02239456,80158.0,80154.0,4e-05]
[1743963820324,0.02179456,80158.0,80156.0,0.01454085]
[1743963820524,0.00305639,80171.0,80162.0,0.012474]
[1743963820731,0.00305639,80171.0,80166.0,0.01454085]
[1743963820938,0.00305639,80171.0,80168.0,0.01454085]
[1743963821133,0.00305639,80171.0,80167.0,0.29753397]
[1743963821134,0.01261029,80202.0,80184.0,0.012471]
[1743963821331,0.1,80215.0,80186.0,0.01454085]
[1743963821537,0.00013688,80202.0,80188.0,0.01454085]
[1743963821777,0.00013688,80202.0,80190.0,0.01454085]
[1743963821969,0.00013688,80202.0,80194.0,0.18911685]
[1743963822176,0.00013688,80202.0,80201.0,0.14991182]
[1743963822439,0.00013688,80202.0,80201.0,0.28460899]
[1743963822577,0.012457,80272.0,80212.0,0.187003]
[1743963822775,0.00062352,80252.0,80223.0,0.174513]
[1743963823004,0.00062352,80252.0,80231.0,0.13744382]
[1743963823338,0.00062352,80252.0,80233.0,0.01454085]
[1743963823479,0.00062352,80252.0,80235.0,0.01454085]
[1743963823674,0.00062352,80252.0,80237.0,0.01454085]
[1743963823902,0.00062352,80252.0,80239.0,0.13744382]
[1743963824101,0.00062352,80252.0,80248.0,0.012461]
[1743963824303,0.00062352,80252.0,80251.0,0.14990382]
[1743963824541,0.0466,80311.0,80251.0,0.14990382]
[1743963824542,0.92098005,80320.0,80273.0,0.012457]
[1743963824702,0.047,80322.0,80282.0,0.012456]
[1743963824880,1.22804,80338.0,80292.0,0.012454]
[1743963824881,0.0124689,80335.0,80292.0,0.012454]
[1743963825081,0.174254,80343.0,80293.0,0.01703127]
[1743963825282,0.77098005,80340.0,80293.0,0.01703127]
[1743963825528,0.12290297,80339.0,80296.0,0.01454085]
[1743963825734,0.00013692,80330.0,80299.0,0.12290297]
[1743963825942,0.00013692,80330.0,80304.0,0.01454085]
[1743963826149,0.00013692,80330.0,80306.0,0.13744382]
[1743963826477,0.00013692,80330.0,80319.0,0.12290297]
[1743963826710,0.00013692,80330.0,80323.0,0.01454085]
[1743963826912,0.00013692,80330.0,80325.0,0.01454085]
[1743963827118,8e-05,80367.0,80327.0,0.01454085]
[1743963827330,8e-05,80367.0,80331.0,0.12290297]
[1743963827472,8e-05,80367.0,80329.0,0.01454085]
[1743963827473,0.00053565,80367.0,80336.0,0.01454085]
[1743963827675,0.00053565,80367.0,80344.0,0.12290297]
[1743963827883,0.00053565,80367.0,80348.0,0.01454085]
[1743963828085,0.00053565,80367.0,80351.0,0.01454085]
[1743963828311,0.01912565,80385.0,80353.0,0.01454085]
[1743963828519,0.01926226,80385.0,80364.0,0.01454085]
[1743963828688,0.01926226,80385.0,80367.0,0.13744382]
[1743963828886,0.01926226,80385.0,80370.0,0.12290297]
[1743963829116,0.01926226,80385.0,80371.0,0.01253905]
[1743963829290,0.01926226,80385.0,80372.0,0.12290297]
[1743963829488,0.01926226,80385.0,80374.0,0.01454085]
[1743963829675,0.01926226,80385.0,80371.0,0.01253905]
[1743963829870,0.01926226,80385.0,80364.0,4e-05]
[1743963829871,0.01916006,80385.0,80364.0,4e-05]
[1743963830076,0.174179,80378.0,80364.0,4e-05]
[1743963830278,0.01916006,80385.0,80364.0,4e-05]
[1743963830479,0.77098005,80380.0,80364.0,8e-05]
[1743963830693,0.001,80367.0,80364.0,8e-05]
[1743963830896,0.34,80375.0,80364.0,8e-05]
[1743963831101,0.34,80373.0,80364.0,8e-05]
[1743963831305,0.34,80371.0,80364.0,8e-05]
[1743963831590,0.34,80369.0,80364.0,8e-05]
[1743963831999,0.01916006,80385.0,80365.0,0.12290297]
[1743963832129,0.001,80367.0,80366.0,0.02683915]
[1743963832337,0.001,80367.0,80366.0,0.28748474]
[1743963832534,0.001,80367.0,80366.0,0.13520127]
[1743963832738,0.001,80367.0,80366.0,0.0122983]
[1743963832940,0.001,80367.0,80364.0,0.00016]
[1743963833343,0.12290297,80366.0,80364.0,0.00016]
[1743963833790,0.001,80367.0,80364.0,4e-05]
[1743963833993,0.34,80366.0,80364.0,4e-05]
[1743963834230,0.001,80367.0,80364.0,4e-05]
[1743963834630,0.01916006,80385.0,80365.0,0.12290297]
[1743963834845,0.01916006,80385.0,80367.0,0.01354085]
[1743963835042,0.01916006,80385.0,80368.0,0.12290297]
[1743963835259,0.01916006,80385.0,80369.0,0.00248804]
[1743963835464,0.01916006,80385.0,80372.0,0.012442]
[1743963835666,0.01916006,80385.0,80373.0,0.12290297]
[1743963835869,0.01916006,80385.0,80374.0,0.0122903]
[1743963836076,0.01916006,80385.0,80375.0,0.12290297]
[1743963836687,0.01916006,80385.0,80374.0,0.0122903]
[1743963836938,0.01916006,80385.0,80364.0,4e-05]
[1743963837092,0.01916006,80385.0,80365.0,0.12290297]
[1743963837300,0.01416006,80385.0,80366.0,0.01454085]
[1743963837497,0.01416006,80385.0,80364.0,4e-05]
[1743963837697,0.34,80383.0,80364.0,4e-05]
[1743963837881,0.34,80379.0,80364.0,4e-05]
[1743963838081,0.34,80379.0,80365.0,0.12290297]
[1743963838279,0.34,80379.0,80366.0,0.0122943]
[1743963838503,0.34,80379.0,80365.0,0.12290297]
[1743963838929,0.01916006,80385.0,80364.0,4e-05]
[1743963838930,0.005,80383.0,80366.0,0.12290297]
[1743963839128,0.005,80383.0,80364.0,4e-05]
[1743963839330,0.01416006,80385.0,80364.0,8e-05]
[1743963839569,0.46290297,80384.0,80364.0,8e-05]
[1743963839766,0.012441,80374.0,80364.0,8e-05]
[1743963839918,0.34,80372.0,80364.0,8e-05]
[1743963840120,0.47534597,80365.0,80364.0,0.00012]
[1743963840346,0.012446,80342.0,80326.0,0.01235412]
[1743963840561,0.012446,80342.0,80286.0,0.000335]
[1743963840562,0.012448,80332.0,80317.0,0.01235412]
[1743963840762,0.77098005,80327.0,80316.0,0.01235412]
[1743963840968,0.12290297,80327.0,80316.0,0.01235412]
[1743963841173,0.01245,80320.0,80316.0,0.01235412]
[1743963841373,0.12290297,80319.0,80304.0,0.01235412]
[1743963841551,0.77098005,80316.0,80304.0,0.01235412]
[1743963841773,0.12290297,80312.0,80304.0,0.01235412]
[1743963841979,0.012452,80304.0,80291.0,0.01235412]
[1743963842188,0.12290297,80300.0,80286.0,0.000335]
[1743963842392,0.77098005,80301.0,80286.0,0.000335]
[1743963842393,0.12290297,80295.0,80286.0,0.000335]
[1743963842821,0.34,80294.0,80286.0,0.00079065]
[1743963843021,0.46290297,80287.0,80286.0,0.00079065]
[1743963843583,0.34,80287.0,80286.0,0.00079065]
[1743963844197,0.34,80287.0,80252.0,0.174449]
[1743963844198,0.34,80286.0,80247.0,0.12781315]
[1743963844394,0.34,80284.0,80253.0,0.01246]
[1743963844595,0.34,80299.0,80257.0,0.186898]
[1743963844795,0.34,80289.0,80258.0,0.12290297]
[1743963844997,0.012452,80308.0,80250.0,0.22855532]
[1743963844998,0.34,80279.0,80250.0,0.05410132]
[1743963845198,0.12290297,80278.0,80251.0,0.00249171]
[1743963845399,0.77098005,80270.0,80249.0,0.00013692]
[1743963845611,0.005,80284.0,80255.0,0.01246]
[1743963845818,0.12290297,80283.0,80249.0,0.01259792]
[1743963846033,0.005,80284.0,80254.0,0.01246]
[1743963846237,0.005,80284.0,80255.0,0.17408482]
[1743963846440,0.77098005,80280.0,80255.0,0.05118185]
[1743963846687,0.012458,80268.0,80249.0,0.00013692]